fUSD/lending_fUSD_20260529
["ID","MTS","AMOUNT","RATE_DAILY","PERIOD"]
[423246918,1779987040000,-500.0,0.00014999,2]
[423246899,1779987040000,-78120.0671464,0.00014999,2]
[423246903,1779987040000,-500.0,0.00014999,2]
[423246920,1779987040000,-508.40286137,0.00014999,2]
[423246906,1779987040000,-500.0,0.00014999,2]
[423246883,1779987040000,-2288.87250686,0.000149,2]
[423246895,1779987040000,-500.0,0.00014999,2]
[423246902,1779987040000,-500.0,0.00014999,2]
[423246885,1779987040000,-11362.9231047,0.00014971,2]
[423246886,1779987040000,-1617.4061895,0.00014971,2]
[423246892,1779987040000,-500.0,0.00014999,2]
[423246887,1779987040000,-151.0,0.00014997,2]
[423246891,1779987040000,-846.3538469,0.00014999,2]
[423246884,1779987040000,-817.14343104,0.000149,2]
[423246890,1779987040000,-17965.3815598,0.00014999,2]
[423246894,1779987040000,-500.0,0.00014999,2]
[423246889,1779987040000,-616.04,0.00014998,2]
[423246893,1779987040000,-500.0,0.00014999,2]
[423246896,1779987040000,-505.94594791,0.00014999,2]
[423246901,1779987040000,-500.0,0.00014999,2]
[423246888,1779987040000,-644.42,0.00014998,2]
[423246898,1779987040000,-307.08,0.00014999,2]
[423246950,1779987041000,-500.0,0.00014999,2]
[423246964,1779987041000,-151.0,0.00014999,2]
[423246958,1779987041000,-500.0,0.00014999,2]
[423246960,1779987041000,-500.0,0.00014999,2]
[423246951,1779987041000,-500.0,0.00014999,2]
[423246953,1779987041000,-500.0,0.00014999,2]
[423246954,1779987041000,-500.0,0.00014999,2]
[423246952,1779987041000,-500.0,0.00014999,2]
[423246965,1779987041000,-151.0,0.00014999,2]
[423246955,1779987041000,-500.0,0.00014999,2]
[423246957,1779987041000,-500.0,0.00014999,2]
[423246967,1779987041000,-151.0,0.00014999,2]
[423246961,1779987041000,-403.43,0.00014999,2]
[423246956,1779987041000,-500.0,0.00014999,2]
[423246963,1779987041000,-151.0,0.00014999,2]
[423246962,1779987041000,-151.0,0.00014999,2]
[423246966,1779987041000,-151.0,0.00014999,2]
[423246968,1779987041000,-151.0,0.00014999,2]
[423246970,1779987041000,-151.0,0.00014999,2]
[423246980,1779987041000,-500.0,0.00014999,2]
[423246973,1779987041000,-500.0,0.00014999,2]
[423246981,1779987041000,-500.0,0.00014999,2]
[423246949,1779987041000,-500.0,0.00014999,2]
[423246959,1779987041000,-500.0,0.00014999,2]
[423246948,1779987041000,-41964.61157875,0.00014999,2]
[423246926,1779987041000,-500.0,0.00014999,2]
[423246947,1779987041000,-29137.8550693,0.00014999,2]
[423246977,1779987041000,-500.0,0.00014999,2]
[423246925,1779987041000,-500.0,0.00014999,2]
[423246924,1779987041000,-500.0,0.00014999,2]
[423246923,1779987041000,-500.0,0.00014999,2]
[423246931,1779987041000,-500.0,0.00014999,2]
[423246932,1779987041000,-500.0,0.00014999,2]
[423246921,1779987041000,-500.0,0.00014999,2]
[423246933,1779987041000,-500.0,0.00014999,2]
[423246922,1779987041000,-500.0,0.00014999,2]
[423246927,1779987041000,-500.0,0.00014999,2]
[423246928,1779987041000,-500.0,0.00014999,2]
[423246946,1779987041000,-7912.68234,0.00014999,2]
[423246930,1779987041000,-500.0,0.00014999,2]
[423246935,1779987041000,-500.0,0.00014999,2]
[423246939,1779987041000,-500.0,0.00014999,2]
[423246934,1779987041000,-500.0,0.00014999,2]
[423246938,1779987041000,-500.0,0.00014999,2]
[423246943,1779987041000,-500.0,0.00014999,2]
[423246941,1779987041000,-500.0,0.00014999,2]
[423246940,1779987041000,-500.0,0.00014999,2]
[423246944,1779987041000,-535.38,0.00014999,2]
[423246945,1779987041000,-66120.61822585,0.00014999,2]
[423246937,1779987041000,-500.0,0.00014999,2]
[423246942,1779987041000,-500.0,0.00014999,2]
[423246929,1779987041000,-500.0,0.00014999,2]
[423246969,1779987041000,-151.0,0.00014999,2]
[423246936,1779987041000,-500.0,0.00014999,2]
[423246974,1779987041000,-500.0,0.00014999,2]
[423247006,1779987041000,-644.46,0.00014999,2]
[423247014,1779987041000,-500.0,0.00014999,2]
[423247008,1779987041000,-500.0,0.00014999,2]
[423247007,1779987041000,-500.0,0.00014999,2]
[423247011,1779987041000,-500.0,0.00014999,2]
[423247012,1779987041000,-500.0,0.00014999,2]
[423247009,1779987041000,-500.0,0.00014999,2]
[423247010,1779987041000,-500.0,0.00014999,2]
[423247017,1779987041000,-500.0,0.00014999,2]
[423247018,1779987041000,-500.0,0.00014999,2]
[423247015,1779987041000,-500.0,0.00014999,2]
[423247013,1779987041000,-500.0,0.00014999,2]
[423247016,1779987041000,-500.0,0.00014999,2]
[423247020,1779987041000,-500.0,0.00014999,2]
[423247025,1779987041000,-2893553.32736773,0.00015,2]
[423247019,1779987041000,-500.0,0.00014999,2]
[423247022,1779987041000,-500.0,0.00014999,2]
[423247028,1779987041000,-265.96,0.00015,2]
[423247024,1779987041000,-531.91858761,0.00014999,2]
[423247026,1779987041000,-706.28320434,0.00015,2]
[423247023,1779987041000,-500.0,0.00014999,2]
[423247021,1779987041000,-500.0,0.00014999,2]
[423247027,1779987041000,-963.76004824,0.00015,2]
[423247001,1779987041000,-644.42,0.00014999,2]
[423247003,1779987041000,-644.42,0.00014999,2]
[423247004,1779987041000,-644.42,0.00014999,2]
[423246987,1779987041000,-644.42,0.00014999,2]
[423246975,1779987041000,-500.0,0.00014999,2]
[423246971,1779987041000,-151.0,0.00014999,2]
[423246978,1779987041000,-500.0,0.00014999,2]
[423246976,1779987041000,-500.0,0.00014999,2]
[423246979,1779987041000,-500.0,0.00014999,2]
[423246982,1779987041000,-226.61703358,0.00014999,2]
[423246986,1779987041000,-500.0,0.00014999,2]
[423246992,1779987041000,-644.42,0.00014999,2]
[423246988,1779987041000,-644.42,0.00014999,2]
[423246985,1779987041000,-526.59276587,0.00014999,2]
[423246991,1779987041000,-644.42,0.00014999,2]
[423246984,1779987041000,-500.0,0.00014999,2]
[423246972,1779987041000,-151.0,0.00014999,2]
[423246993,1779987041000,-644.42,0.00014999,2]
[423246990,1779987041000,-644.42,0.00014999,2]
[423246983,1779987041000,-500.0,0.00014999,2]
[423246989,1779987041000,-644.42,0.00014999,2]
[423247002,1779987041000,-644.42,0.00014999,2]
[423246995,1779987041000,-644.42,0.00014999,2]
[423246996,1779987041000,-644.42,0.00014999,2]
[423246999,1779987041000,-644.42,0.00014999,2]
[423247005,1779987041000,-644.42,0.00014999,2]
[423246994,1779987041000,-644.42,0.00014999,2]
[423246998,1779987041000,-644.42,0.00014999,2]
[423246997,1779987041000,-644.42,0.00014999,2]
[423247000,1779987041000,-644.42,0.00014999,2]
[423247050,1779987045000,-10719.31037878,0.00015,2]
[423247051,1779987046000,-7298.52730078,0.00015,2]
[423247053,1779987046000,-328.16169283,0.00015,2]
[423247052,1779987046000,-13967.06048741,0.00015,2]
[423247078,1779987071000,226.634746,0.00022721,120]
[423247081,1779987284000,-196.58179388,0.00012739,2]
[423247084,1779987335000,168.3,7.735e-05,2]
[423247083,1779987335000,168.3,7.367e-05,2]
[423247082,1779987335000,168.3,6.998e-05,2]
[423247088,1779987336000,168.3,9.208e-05,2]
[423247087,1779987336000,168.3,8.84e-05,2]
[423247086,1779987336000,168.3,8.472e-05,2]
[423247085,1779987336000,168.3,8.103e-05,2]
[423247090,1779987337000,168.3,9.945e-05,2]
[423247089,1779987337000,168.3,9.577e-05,2]
[423247092,1779987337000,168.3,0.00010682,2]
[423247091,1779987337000,168.3,0.00010313,2]
[423247093,1779987413000,-168.3,0.0001105,2]
[423247094,1779987459000,-168.3,0.00011418,2]
[423247095,1779987512000,-187.0,0.00011614,2]
[423247098,1779987565000,-168.3,0.00011787,2]
[423247100,1779987618000,-168.3,0.00012155,2]
[423247104,1779987672000,-168.3,0.00012523,2]
[423247106,1779987725000,-300.0,0.00012735,2]
[423247107,1779987778000,-2414.06487894,0.0001273,2]
[423247109,1779987832000,-300.0,0.00012734,2]
[423247111,1779987885000,-500.0,0.00012734,2]
[423247112,1779987885000,200.0,0.00028,120]
[423247115,1779988019000,-151.72681805,0.0002,20]
[423247116,1779988030000,-151.92409281,0.00012633,2]
[423247118,1779988030000,-2.91614327,0.00012732,2]
[423247117,1779988030000,-197.47646253,0.0001271,2]
[423247120,1779988034000,-316.84772132,0.00012733,2]
[423247122,1779988034000,-289.17574587,0.00012733,2]
[423247121,1779988034000,-300.20693406,0.00012733,2]
[423247119,1779988034000,-297.08385673,0.00012732,2]
[423247125,1779988039000,-500.0,0.00012733,2]
[423247126,1779988039000,-11.46869162,0.00012733,2]
[423247124,1779988039000,-277.70705425,0.00012733,2]
[423247123,1779988039000,-210.82425413,0.00012733,2]
[423247127,1779988098000,-488.53130838,0.00012733,2]
[423247128,1779988152000,-500.0,0.00012732,2]
[423247129,1779988205000,-347.0,0.00012731,2]
[423247150,1779988231000,-39149.15408095,0.0001274,2]
[423247151,1779988231000,-356.04,0.00012773,2]
[423247148,1779988231000,-5191.54365359,0.0001274,2]
[423247147,1779988231000,-9262.90087722,0.0001274,2]
[423247143,1779988231000,-206.7556643,0.00012739,2]
[423247144,1779988231000,-500.0,0.00012739,2]
[423247145,1779988231000,-150.0,0.00012739,2]
[423247152,1779988231000,-215.50460005,0.00012789,2]
[423247142,1779988231000,-429.0197122,0.00012739,2]
[423247146,1779988231000,-11493.09700034,0.0001274,2]
[423247139,1779988231000,-233.08434462,0.00012739,2]
[423247138,1779988231000,-198.0594966,0.00012739,2]
[423247136,1779988231000,-361.78934864,0.00012733,2]
[423247137,1779988231000,-496.87495686,0.00012739,2]
[423247141,1779988231000,-500.0,0.00012739,2]
[423247154,1779988231000,-54671.93,0.00012848,2]
[423247140,1779988231000,-500.0,0.00012739,2]
[423247149,1779988231000,-6727.8399879,0.0001274,2]
[423247153,1779988231000,-8341.85,0.00012848,2]
[423247170,1779988231000,-166.66,0.00013836,2]
[423247168,1779988231000,-356.04,0.00013731,2]
[423247162,1779988231000,-154.34,0.0001336,2]
[423247164,1779988231000,-5621.0,0.0001344,2]
[423247166,1779988231000,-500.0,0.00013671,2]
[423247165,1779988231000,-168.3,0.00013628,2]
[423247163,1779988231000,-356.04,0.00013412,2]
[423247167,1779988231000,-166.66,0.00013699,2]
[423247161,1779988231000,-168.3,0.0001326,2]
[423247169,1779988231000,-255.0,0.00013834,2]
[423247160,1779988231000,-356.04,0.00013092,2]
[423247155,1779988231000,-2000.0,0.00012854,2]
[423247158,1779988231000,-177.3,0.00012937,2]
[423247157,1779988231000,-523.44,0.00012916,2]
[423247156,1779988231000,-168.3,0.00012892,2]
[423247159,1779988231000,-162.88,0.00012968,2]
[423247205,1779988232000,-500.0,0.00014288,2]
[423247210,1779988232000,-500.0,0.00014288,2]
[423247212,1779988232000,-500.0,0.00014288,2]
[423247218,1779988232000,-209.03147293,0.00014429,2]
[423247216,1779988232000,-166.66,0.00014384,2]
[423247232,1779988232000,-500.0,0.00014488,2]
[423247230,1779988232000,-500.0,0.00014488,2]
[423247236,1779988232000,-500.0,0.00014488,2]
[423247235,1779988232000,-500.0,0.00014488,2]
[423247234,1779988232000,-500.0,0.00014488,2]
[423247208,1779988232000,-500.0,0.00014288,2]
[423247220,1779988232000,-2000.0,0.0001446,2]
[423247214,1779988232000,-658.01233027,0.00014321,2]
[423247184,1779988232000,-500.0,0.0001404,2]
[423247201,1779988232000,-639.2594609,0.00014221,2]
[423247199,1779988232000,-160.14749438,0.00014214,2]
[423247197,1779988232000,-500.0,0.00014189,2]
[423247194,1779988232000,-2500.0,0.00014189,2]
[423247188,1779988232000,-356.04,0.0001405,2]
[423247182,1779988232000,-500.0,0.0001404,2]
[423247237,1779988232000,-500.0,0.00014488,2]
[423247192,1779988232000,-1079.3268,0.00014189,2]
[423247190,1779988232000,-166.66,0.0001411,2]
[423247179,1779988232000,-500.0,0.0001404,2]
[423247177,1779988232000,-250.0,0.00014006,2]
[423247173,1779988232000,-166.66,0.00013973,2]
[423247175,1779988232000,-168.3,0.00013997,2]
[423247203,1779988232000,-166.66,0.00014247,2]
[423247238,1779988232000,-500.0,0.00014488,2]
[423247185,1779988232000,-500.0,0.0001404,2]
[423247222,1779988232000,-500.0,0.00014488,2]
[423247264,1779988232000,-3530.45347407,0.00014999,2]
[423247265,1779988232000,-906.87609144,0.00014999,2]
[423247262,1779988232000,-13541.33039482,0.00014999,2]
[423247261,1779988232000,-2601.7874957,0.00014999,2]
[423247259,1779988232000,-500.0,0.00014998,2]
[423247260,1779988232000,-500.0,0.00014998,2]
[423247255,1779988232000,-4655.7321171,0.0001498,2]
[423247254,1779988232000,-16749.1740543,0.0001494,2]
[423247258,1779988232000,-500.0,0.00014998,2]
[423247252,1779988232000,-700.0,0.000149,5]
[423247263,1779988232000,-3582.66873661,0.00014999,2]
[423247257,1779988232000,-500.0,0.00014998,2]
[423247253,1779988232000,-504.97636721,0.00014914,2]
[423247251,1779988232000,-5000.0,0.000149,2]
[423247256,1779988232000,-151.0,0.00014997,2]
[423247249,1779988232000,-4049.16805115,0.000149,2]
[423247241,1779988232000,-840.61328548,0.00014598,2]
[423247239,1779988232000,-545.26,0.00014488,2]
[423247226,1779988232000,-500.0,0.00014488,2]
[423247240,1779988232000,-1194.97789306,0.00014598,2]
[423247243,1779988232000,-200.0,0.000147,5]
[423247242,1779988232000,-387.6938741,0.00014598,2]
[423247224,1779988232000,-500.0,0.00014488,2]
[423247245,1779988232000,-1028.49,0.00014775,2]
[423247244,1779988232000,-2000.0,0.00014775,2]
[423247248,1779988232000,-404.0,0.00014849,2]
[423247247,1779988232000,-400.0,0.000148,5]
[423247228,1779988232000,-500.0,0.00014488,2]
[423247246,1779988232000,-1261.87,0.00014797,2]
[423247250,1779988232000,-4942.3311,0.000149,2]
[423247270,1779988237000,-538.715813,0.000149,2]
[423247271,1779988238000,-3332.96708909,0.000149,2]
[423247272,1779988238000,-1031.17768419,0.000149,2]
[423247273,1779988238000,-3533.74813399,0.00014999,2]
[423247282,1779988240000,-410.295,0.00014999,2]
[423247281,1779988240000,-1362.44597407,0.00014999,2]
[423247355,1779988243000,-36748.73985246,0.00014999,2]
[423247354,1779988243000,-16068.11167834,0.00014999,2]
[423247353,1779988243000,-11055.54596357,0.00014999,2]
[423247352,1779988243000,-4707.64906147,0.00014999,2]
[423247351,1779988243000,-276.19460498,0.00013528,2]
[423247361,1779988246000,-8549.86714896,0.00014999,2]
[423247360,1779988246000,-98.27318195,0.00014999,2]
[423247362,1779988246000,-3804.20014688,0.00014999,2]
[423247364,1779988246000,-503.8227,0.00014999,2]
[423247366,1779988246000,-6251.49240449,0.00014999,2]
[423247363,1779988246000,-6806.54087767,0.00014999,2]
[423247365,1779988246000,-506.0,0.00014999,2]
[423247370,1779988281000,161.79,0.0002529,120]
[423247373,1779988303000,159.99,0.0001075,2]
[423247372,1779988303000,159.99,9.555e-05,2]
[423247371,1779988303000,159.99,8.361e-05,2]
[423247378,1779988528000,-159.99,0.00011944,2]
[423247380,1779988710000,98.27318195,0.000121,30]
[423247381,1779988744000,-931.49544494,0.000121,30]
[423247384,1779988942000,2734.3852547,0.000107,2]
[423247386,1779988942000,10000.0,0.000107,2]
[423247385,1779988942000,10000.0,0.000107,2]
[423247391,1779988942000,7265.6147453,0.000107,2]
[423247387,1779988942000,10000.0,0.000107,2]
[423247389,1779988942000,10000.0,0.000107,2]
[423247388,1779988942000,10000.0,0.000107,2]
[423247390,1779988942000,10000.0,0.000107,2]
[423247392,1779989093000,156.7,6.269e-05,2]
[423247393,1779989093000,156.7,6.661e-05,2]
[423247394,1779989094000,156.7,7.053e-05,2]
[423247396,1779989094000,156.7,7.837e-05,2]
[423247395,1779989094000,156.7,7.445e-05,2]
[423247401,1779989095000,156.7,9.796e-05,2]
[423247400,1779989095000,156.7,9.404e-05,2]
[423247399,1779989095000,156.7,9.012e-05,2]
[423247398,1779989095000,156.7,8.62e-05,2]
[423247397,1779989095000,156.7,8.228e-05,2]
[423247404,1779989096000,156.7,0.00010971,2]
[423247403,1779989096000,156.7,0.00010579,2]
[423247402,1779989096000,156.7,0.00010188,2]
[423247405,1779989215000,-156.7,0.00011363,2]
[423247406,1779989260000,-156.7,0.00011755,2]
[423247407,1779989260000,-271.95828058,0.00011986,2]
[423247409,1779989260000,-156.7,0.00012147,2]
[423247408,1779989260000,-396.446606,0.00012086,2]
[423247410,1779989261000,-153.01181789,0.00012376,2]
[423247411,1779989314000,-250.0,0.00012424,2]
[423247428,1779989431000,-23.60012492,0.00012572,2]
[423247421,1779989431000,-200.23059144,0.00012473,2]
[423247423,1779989431000,-169.46,0.00012507,2]
[423247424,1779989431000,-156.7,0.00012539,2]
[423247425,1779989431000,-1018.22310896,0.00012572,2]
[423247429,1779989431000,-574.3872372,0.00012572,2]
[423247430,1779989431000,-602.01263788,0.00012572,2]
[423247422,1779989431000,-965.21021658,0.000125,2]
[423247427,1779989431000,-300.0,0.00012572,2]
[423247431,1779989431000,-300.0,0.00012572,2]
[423247432,1779989431000,-300.0,0.00012572,2]
[423247434,1779989431000,-227.77070543,0.00012573,2]
[423247435,1779989431000,-500.0,0.00012573,2]
[423247433,1779989431000,-500.0,0.00012573,2]
[423247436,1779989431000,-500.0,0.00012573,2]
[423247437,1779989431000,-11785.97563713,0.00012574,2]
[423247426,1779989431000,-181.77689104,0.00012572,2]
[423247485,1779989432000,-150.0,0.00013006,2]
[423247486,1779989432000,-167.53,0.00013025,2]
[423247488,1779989432000,-727.01,0.00013076,2]
[423247482,1779989432000,-150.0,0.00012881,2]
[423247483,1779989432000,-193.0,0.0001293,2]
[423247474,1779989432000,-727.01,0.00012757,2]
[423247475,1779989432000,-287.18,0.00012772,2]
[423247476,1779989432000,-4630.82,0.00012796,2]
[423247484,1779989432000,-250.0,0.0001293,2]
[423247471,1779989432000,-500.0,0.00012727,2]
[423247473,1779989432000,-150.0,0.00012756,2]
[423247489,1779989432000,-159.99,0.00013139,2]
[423247491,1779989432000,-727.01,0.00013395,2]
[423247490,1779989432000,-872.31,0.00013184,2]
[423247492,1779989432000,-150.0,0.00013488,2]
[423247479,1779989432000,-215.50460005,0.0001282,2]
[423247494,1779989432000,-150.0,0.00013488,2]
[423247496,1779989432000,-150.0,0.00013488,2]
[423247495,1779989432000,-150.0,0.00013488,2]
[423247497,1779989432000,-150.0,0.00013488,2]
[423247499,1779989432000,-250.0,0.00013613,2]
[423247500,1779989432000,-150.0,0.00013675,2]
[423247498,1779989432000,-150.0,0.00013581,2]
[423247493,1779989432000,-150.0,0.00013488,2]
[423247487,1779989432000,-503.56250299,0.00013025,2]
[423247470,1779989432000,-1117.0,0.00012723,2]
[423247467,1779989432000,-150.0,0.00012695,2]
[423247472,1779989432000,-7526.0,0.00012732,2]
[423247438,1779989432000,-160.0,0.00012584,2]
[423247446,1779989432000,-150.0,0.00012631,2]
[423247439,1779989432000,-185.0,0.00012587,2]
[423247440,1779989432000,-209.03147293,0.00012593,2]
[423247443,1779989432000,-1182.49,0.00012617,2]
[423247442,1779989432000,-6755.63,0.00012613,2]
[423247441,1779989432000,-152.74,0.00012598,2]
[423247444,1779989432000,-1494.03,0.00012619,2]
[423247445,1779989432000,-150.0,0.00012631,2]
[423247448,1779989432000,-163.15904124,0.00012639,2]
[423247449,1779989432000,-500.0,0.00012639,2]
[423247450,1779989432000,-500.0,0.00012639,2]
[423247454,1779989432000,-30886.01,0.00012645,2]
[423247457,1779989432000,-500.0,0.00012664,2]
[423247453,1779989432000,-241.84013417,0.00012639,2]
[423247455,1779989432000,-150.0,0.00012654,2]
[423247452,1779989432000,-500.0,0.00012639,2]
[423247451,1779989432000,-257.9955907,0.00012639,2]
[423247461,1779989432000,-200.0,0.00012684,2]
[423247459,1779989432000,-4199.28,0.00012664,2]
[423247463,1779989432000,-6818.82465473,0.00012685,2]
[423247465,1779989432000,-18409.01,0.00012694,2]
[423247501,1779989432000,-166.66,0.00013699,2]
[423247477,1779989432000,-500.0,0.00012804,3]
[423247468,1779989432000,-3394.0,0.00012717,2]
[423247481,1779989432000,-1946.36,0.00012872,2]
[423247502,1779989432000,-200.0,0.00013699,2]
[423247447,1779989432000,-150.0,0.00012638,2]
[423247505,1779989432000,-727.01,0.00013714,2]
[423247534,1779989432000,-500.0,0.00014288,2]
[423247535,1779989432000,-400.0,0.000143,5]
[423247537,1779989432000,-159.99,0.00014333,2]
[423247536,1779989432000,-150.0,0.00014331,2]
[423247544,1779989432000,-900.0,0.000145,5]
[423247545,1779989432000,-150.0,0.00014518,2]
[423247546,1779989432000,-1200.0,0.000146,5]
[423247541,1779989432000,-150.0,0.00014424,2]
[423247540,1779989432000,-700.0,0.000144,5]
[423247539,1779989432000,-150.0,0.00014387,2]
[423247538,1779989432000,-166.66,0.00014384,2]
[423247542,1779989432000,-1946.36,0.00014482,2]
[423247543,1779989432000,-150.0,0.00014487,2]
[423247547,1779989432000,-150.0,0.00014612,2]
[423247549,1779989432000,-150.0,0.00014687,2]
[423247548,1779989432000,-157.51,0.00014671,2]
[423247550,1779989432000,-2500.0,0.0001469,2]
[423247551,1779989432000,-832.87284495,0.00014699,2]
[423247554,1779989432000,-200.0,0.000147,5]
[423247553,1779989432000,-1462.66026785,0.00014699,2]
[423247558,1779989432000,-1462.66026785,0.00014728,2]
[423247552,1779989432000,-263.92248948,0.00014699,2]
[423247556,1779989432000,-832.87284491,0.00014721,2]
[423247557,1779989432000,-263.92248942,0.00014721,2]
[423247503,1779989432000,-500.0,0.00013699,2]
[423247533,1779989432000,-500.0,0.00014288,2]
[423247529,1779989432000,-150.0,0.00014237,2]
[423247555,1779989432000,-150.0,0.00014705,2]
[423247528,1779989432000,-150.0,0.00014237,2]
[423247530,1779989432000,-166.66,0.00014247,2]
[423247506,1779989432000,-342.84396548,0.0001372,2]
[423247504,1779989432000,-411.67425317,0.00013699,2]
[423247507,1779989432000,-255.0,0.00013737,2]
[423247509,1779989432000,-150.0,0.00013787,2]
[423247510,1779989432000,-420.0,0.00013793,2]
[423247508,1779989432000,-150.0,0.00013769,2]
[423247511,1779989432000,-300.0,0.00013793,2]
[423247512,1779989432000,-383.0,0.00013793,2]
[423247513,1779989432000,-1680.0,0.00013829,2]
[423247517,1779989432000,-166.66,0.00013973,2]
[423247518,1779989432000,-150.0,0.00013987,2]
[423247514,1779989432000,-166.66,0.00013836,2]
[423247521,1779989432000,-727.01,0.00014033,2]
[423247532,1779989432000,-338.18944025,0.00014288,2]
[423247531,1779989432000,-500.0,0.00014288,2]
[423247526,1779989432000,-225.17782965,0.00014196,2]
[423247516,1779989432000,-150.0,0.00013956,2]
[423247524,1779989432000,-166.66,0.0001411,2]
[423247525,1779989432000,-150.0,0.00014143,2]
[423247527,1779989432000,-200.0,0.000142,5]
[423247522,1779989432000,-150.0,0.0001405,2]
[423247520,1779989432000,-250.0,0.00014,2]
[423247515,1779989432000,-150.0,0.00013862,2]
[423247519,1779989432000,-1182.02654096,0.0001399,2]
[423247523,1779989432000,-150.0,0.00014087,2]
[423247561,1779989433000,-1462.66026785,0.00014756,2]
[423247560,1779989433000,-263.92248942,0.00014744,2]
[423247563,1779989433000,-263.92248942,0.00014766,2]
[423247559,1779989433000,-832.87284491,0.00014744,2]
[423247562,1779989433000,-832.87284491,0.00014766,2]
[423247564,1779989433000,-1462.66026785,0.00014785,2]
[423247567,1779989433000,-21504.70018517,0.0001479,2]
[423247566,1779989433000,-263.92248942,0.00014788,2]
[423247568,1779989433000,-3229.88370083,0.0001479,2]
[423247570,1779989433000,-7336.79683122,0.0001479,2]
[423247569,1779989433000,-822.21968653,0.0001479,2]
[423247571,1779989433000,-63749.20089855,0.0001479,2]
[423247573,1779989433000,-30012.39718146,0.0001479,2]
[423247572,1779989433000,-390.37,0.0001479,2]
[423247574,1779989433000,-8746.99044034,0.0001479,2]
[423247575,1779989433000,-1158.45634641,0.0001479,2]
[423247565,1779989433000,-832.87284491,0.00014788,2]
[423247595,1779989438000,-832.87284491,0.00014878,2]
[423247598,1779989438000,-3101.1374816,0.0001489,2]
[423247597,1779989438000,-34966.0702483,0.0001489,2]
[423247594,1779989438000,-1462.66026785,0.00014871,2]
[423247596,1779989438000,-263.92248942,0.00014878,2]
[423247612,1779989438000,-150.0,0.00014986,2]
[423247602,1779989438000,-25000.0,0.000149,3]
[423247601,1779989438000,-5000.0,0.000149,2]
[423247600,1779989438000,-458.00853611,0.000149,2]
[423247593,1779989438000,-263.92248942,0.00014855,2]
[423247603,1779989438000,-200.0,0.000149,5]
[423247604,1779989438000,-832.87284491,0.000149,2]
[423247608,1779989438000,-236.53246537,0.000149,2]
[423247606,1779989438000,-1462.66026785,0.000149,2]
[423247611,1779989438000,-5540.7819755,0.00014983,2]
[423247592,1779989438000,-832.87284491,0.00014855,2]
[423247591,1779989438000,-111289.5809532,0.00014847,2]
[423247599,1779989438000,-150.0,0.00014893,2]
[423247577,1779989438000,-1132.42829031,0.0001469,2]
[423247578,1779989438000,-1367.57170969,0.0001469,2]
[423247580,1779989438000,-487.18267254,0.0001479,2]
[423247579,1779989438000,-715.23279823,0.0001479,2]
[423247581,1779989438000,-304.0,0.0001479,2]
[423247582,1779989438000,-230376.82955872,0.0001479,2]
[423247590,1779989438000,-1462.66026785,0.00014843,2]
[423247583,1779989438000,-150.0,0.00014799,2]
[423247586,1779989438000,-263.92248942,0.00014811,2]
[423247584,1779989438000,-200.0,0.000148,5]
[423247609,1779989438000,-433.0,0.00014938,2]
[423247585,1779989438000,-832.87284491,0.00014811,2]
[423247589,1779989438000,-263.92248942,0.00014833,2]
[423247588,1779989438000,-832.87284491,0.00014833,2]